{"text_format":"1","workbook":"xlsx","n_sheets":18,"sheets":["identifikacija_obrazca","navodila","stranka","pooblasc","izjava o ne eVročanju","1_podatki_o_napravi","2_umestitev","3_nenevar_in_nev_odp","4_po_obdelavi_nastalo","5_obvezne_priloge","6_druga_dokazila","up_taksa","sifrant_odpadkov","sifrant_obcine","sifrant_ostalo","sifrant_prilog","ODP_sifrant_r_d","prevent_share"],"not_rendered":{"charts":0,"images":1,"macros":1,"external_links":0,"defined_names":147,"comments":4,"pivot_tables":0},"unopened":[],"bounds":{"document_bytes":16777216,"sheet_cells":100000,"rows_first":2000,"rows_last":500,"rows_between":2000,"halvings":0,"cell_chars":16384,"cell_head_chars":4096},"cells_cut":0,"cells_raw":0,"read":"whole","date_system":"1900"}

{"sheet":"identifikacija_obrazca","index":0,"n_rows":59,"n_cols":4,"rows_kept":59,"cut":false,"hidden":true,"merged":[[62,3,62,18],[63,3,63,18],[64,3,64,18],[56,3,56,18],[57,3,57,18],[58,3,58,18],[59,3,59,18],[60,3,60,18],[52,3,52,18],[53,3,53,18],[54,3,54,18],[55,3,55,18],[61,3,61,18],[47,3,47,18],[48,3,48,18],[49,3,49,18],[50,3,50,18],[51,3,51,18],[42,3,42,18],[43,3,43,18],[44,3,44,18],[45,3,45,18],[46,3,46,18],[37,3,37,18],[38,3,38,18],[39,3,39,18],[40,3,40,18],[41,3,41,18],[32,3,32,18],[33,3,33,18],[34,3,34,18],[35,3,35,18],[36,3,36,18],[27,3,27,18],[28,3,28,18],[29,3,29,18],[30,3,30,18],[31,3,31,18],[21,3,21,18],[22,3,22,18],[25,3,25,18],[26,3,26,18],[23,3,23,18],[24,3,24,18],[16,3,16,18],[17,3,17,18],[19,3,19,18],[20,3,20,18],[11,3,11,18],[12,3,12,18],[13,3,13,18],[14,3,14,18],[15,3,15,18],[0,0,0,14],[5,1,5,14],[8,3,8,18],[9,3,9,18],[10,3,10,18]]}
["Pozor: ti podatki so namenjeni identifikaciji obrazca. Vsaka oseba iz ARSO ali izvajalec za ARSO, ki spreminja elemente v tem obrazcu je dolžan uskladiti številko verzije, dopisati sprremembe in podake o avtorju sprememb in skoordinirati, da se ta verzija odloži na za to predvideno mesto. Prav tako je dolžan skoordinirati, da so o novi verziji obveščene ustrezne osebe."]
["Tip obrazca:","VLOGA_ZBIRALEC",null,"Ta naziv za ta tip vloge ostane vedno isti"]
["Verzija:","1.12",null,"To verzijo je potrebno spremeniti, če se delajo spremembe obrazca (če samo spremembe label, se poviša le druga številka, če kakršnekoli strukturne spremembe ali kontrole, se poviša prva)"]
["Datum zadnje spremembe:","2016-10-27",null,"To je potrebno spremeniti ob spremembi"]
["Oseba, ki je izvedla zadnjo spremembo","Sašo Celarc"]
[]
[]
["Opis sprememb:","Sašo Celarc","2016-09-26","Dopolnil tehnične elemnte za spustne sezname, kontrole, …."]
[null,"Sašo Celarc","2016-09-27","Stvari, ki jih je Marjana napisala v mailu  27 September, 2016 09:43:\nNa strani prosilec uredil izbor za \"Registracija za izvajanje dejavnosti zbiranja in odvoza odpadkov\", da je enak izbor kot pri ostalih spustnih seznamih. Šifrant teh treh vrednosti\npremaknil na zavihek sifrant_ostalo in jih odstranil iz prosilec.\nNa zavihku 2_umestitev_zc odstranil združitev stolpcev tam, kjer se vnaša"]
[null,"Sašo Celarc","2016-10-04","Na zavihku prosilec in pooblasc postavil format za polji, kjer je telefonska številka na Text, ker sicer izginejo vodilne 0."]
[null,"Sašo Celarc","2016-10-10","Na zavihku sifrant_ostalo popravil \"Registracija za izvajanje dejavnosti zbiranja in odvoza odpadkov\", kjer sem odstranil presledek, ki je bil odspredaj"]
[null,"Sašo Celarc","2016-10-10","Na zavihkih 1_zb_center2 in 1_zb_center3 popravil zaporedno številko zbirnega centra v J4 na 2 in 3, da ne navajata uporabnika, da se vsi trije zavihki nanašajo na zaporedno številko 1"]
[null,"Sašo Celarc","2016-10-11","Na zavihku obvezne_priloge odstranil stolpec številko zbirnega centra"]
[null,"Sašo Celarc","2016-10-11","Na zavihku up_taksa za celico H21, ki pomeni datum, postavl validacijo na datum med 1.1.2016 in 1.1.2050"]
[null,"Sašo Celarc","2016-10-11","Naredil range SIFRANT_TIPOV_REGISTRACIJ in nanj vezal VLOOKUP za tip registracije na zavihku prosilec - v celici O24. Stolpec O sem dal na hidden."]
[null,"Sašo Celarc","2016-10-11","Naredil range SIFRANT_TIPOV_UPRAVLJALCEV_ZC in nanj vezal VLOOKUP za tip upravljalca na zavihku 1_zb_centerX - v celici M13. Stolpec M sem dal na hidden."]
[null,"Sašo Celarc","2016-10-11","Na zavihku obvezne_priloge, odstranil stolpec za zaporednp številko zbrinega ventra, ker je ARSO podal informacijo, da velja priloga za celotno vlogo. "]
[null,"Sašo Celarc","2016-10-11","Glede na to, da je samo omejeno število obveznih prilog in da imajo zelo dolg tekst, ki je slabo viden v spustenem seznamu, sem dal na obvezne_priloge kar obe prilogi in zraven možnost izbora z da/ne. V stolpcu D, ki je hidden, pa se nahaja ID ODP_SIFRANT_PRILOG, da imam povezavo na IS-ODPADKI"]
[null,"Sašo Celarc","2016-10-11","Na zavihku up_taksa, je v celici H21, kjer se vpisjuje datum, postavljen Data validation na datum (in rang 1.1.2016 naprej)"]
[null,"Sašo Celarc","2016-10-12","Odstranjen \"?\" v  zavihku obvezne_priloge je potrebno v celici C4 "]
[null,"Marjana Ulrich-S","2016-10-13","Na zavihku prosilec spremenjan tekst v B12 in v B14 (prosilec se premeni v stranko), v E19 je narejena leva poravnava, izbrisan tekst v O24 in spremenjen je naziv zavihka (iz prosilec v stranko)"]
[null,"Marjana Ulrich-S","2016-10-13","Na zavihku \"pooblasc\" boldirana spodnja črta tabele"]
[null,"Marjana Ulrich-S","2016-10-13","Na zavihkih 1_zb_center1 in 2 in 3 v celici C12 vsakega zavihka sprememba barve teksta v \"samodejno\""]
[null,"Marjana Ulrich-S","2016-10-13","na zavihku \"3_nenevar_in_nevar_odp\" popravljen tekst v celici B3, boldirana spodnja črta tabele v vrstici 4, sprememba teksta v celici C4 - dodano \"(izbrati iz spustnega seznama)\" in sprememba višine vrstice 4 na 45"]
[null,"Marjana Ulrich-S","2016-10-13","na zavihku \"4_komunalni_odp\" boldirana tekst in spodnja črta tabele v vrstici 4, popravljen tekst v celici C4 in v celici F4 - dodano \"(izbrati iz spustnega seznama)\" dodana desna obroba celice C4 in sprememba višine vrstice 4 na 45"]
[null,"Marjana Ulrich-S","2016-10-13","na zavihku \"up_taksa\" brisan tekst v celici B12 in J15, v celici B4 popravljeno število 22,66 v 22,60. V celicij J15 izvedena kontrola datuma. Vprašanje: v celici B6 se bo številka 35469016 spremijala s koledarskim letom (npr. v 2017 v 35469017) - kako to rešiti"]
[null,"Marjana Ulrich-S","2016-10-13","na zavihku \"sifrant_prilog\" popravek teksta: ... izdelan v skladu z... in Dokazilo o tem, da je vlagatelj upravljavec"]
[null,"Marjana Ulrich-S","2016-10-13","na zavihku \"obvezne_priloge\" dodana barva ozadja celici B4 in C4"]
[null,"Sašo Celarc","2016-10-13","Uredil data validation za DŠ in MŠO na zavihkih \"stranka\" in \"pooblasc\". Za celici za DŠ in MŠO postavil format na Text, da se ob uvozu ne pretvarja v format z decmalnimi ločili."]
[null,"Sašo Celarc","2016-10-13","\"2_umestitev_zc\" - format stolpecev  D, E in G, postavil na General (prej je bilo na Text), sicer obstoječi Data validation ne deluje. Tako sedaj deluje Data validation na D,E,G"]
[null,"Andreja Vihtelič","2016-10-14","Dodana navodila za izpolnjevanje obrazca"]
[null,"Andreja Vihtelič","2016-10-14","Odstranitev napačne kontrole v J15 in popravek kontrole v H21 na listu \"up_taksa\""]
[null,"Sašo Celarc","2016-10-16","Na zavihkih 3_nenevar_in_nevar_odp in 4_komunalni_odp je NAREJEN popravek, da se ne uporablja več funkcija IFNA ampak kombinacija IF in ISNA"]
[null,"Marjana Ulrich-S","2016-10-21","Dopolnitev navodil za izpolnjevanje obrazca"]
[null,"Marjana Ulrich-S","2015-10-21","poprevek teksta na zavihku \"stranka\" v celici B11"]
[null,"Marjana Ulrich-S","2016-10-21","dodan opomba na zavihku \"stranka\" celica I32 - višina vrstice nastavljena na največjo možno vrednos (409)"]
[null,"Marjana Ulrich-S","2016-10-21","na zavihku \"pooblasc\" popravek teksta v celici B3"]
[null,"Marjana Ulrich-S",21102016,"na zavihkih 1_zb_center1, 1_zb_center2 in 1_zb_center3 popravek teksta v vsaki celici B15 (brisano: nenevarni)"]
[null,"Marjana Ulrich-S",21102016,"na zavihkih 1_zb_center1, 1_zb_center2 in 1_zb_center3 popravek teksta v vsaki celici B6 (brisano: zbiralnega mesta, dodano zbirenga centra)"]
[null,"Marjana Ulrich-S","2016-10-21","na zavihku 4-komunalni_odp_ poprevek teksta v celici B2 (v oklepaju namest samo komunalni odpadki tekst:izpolnijo le izvajalci obvezne občinske gospodarske javne službe zbiranja določenih vrst komunalnih odpadkov"]
[null,"Marjana Ulrich-S","2016-10-21","na zavihkih 1_zb_center1, 1_zb_center2 in 1_zb_center3 popravek pogojev v celicah J15 in J18"]
[null,"Marjana Ulrich-S","2016-10-21","na zvihku up_taksa spremenjen naziv v celici B2"]
[null,"Marjana Ulrich-S","2016-10-21","na zvihku obvezne_priloge spremenjen naziv v celici C4"]
[null,"Sašo Celarc","2016-10-24","na zavihku obvezne_priloge uredil zaščito (vnos dovoljen le v C5 in C6)"]
[null,"Sašo Celarc","2016-10-24","na zavihku up_taksa uredil zaščito (vnos dovoljen le v B12, J15, C21 in H21)"]
[null,"Sašo Celarc","2016-10-24","Postavil skrivanje zavihkov po metodi http://www.techrepublic.com/blog/microsoft-office/hide-excel-sheets-really-hide-them/, o tem in navodila poslal mail Andreji in Marjani 24.10.2016 19:30"]
[null,"Sašo Celarc","2016-10-27","Na zavihku 3_nenevar_in_nevar_odp je bila pomotoma defniran Excel Table objekt in je to ob dodajanju vrstice povzročalo čudna sporočila (javila Andreja  27. oktober 2016 11:51). To sem odstranil"]
[null,"Sašo Celarc","2016-10-27","Dodani macroji ProtectAll(), UnProtectAll(), VeryHide(), UnHideAll(), da je enako kot na OVD"]
[null,"Sašo Celarc","2016-10-27","Dodan macro VrniGeslo(), da se zamenja le na enem mestu, če je potrebno "]
[null,"Sašo Celarc","2016-10-27","Mehanizem za dodajanje vrstc na koncu tabel, ker sicer se niso kopirale formula, če je user to dodajal sam. Za to je potreben macro InSert_Row() in named range z imenom ZA_ZADNJO_VRSTICO, ki mora biti definiran na vsakem zavihku v stolpcu A eno vrstico za koncem tabele (ki jo ozančuje okvir) ter gumb, ki kliče macro"]
[null,"Andreja Vihtelič","2016-10-28","Popravki tekstovnih napak in dodano navodilo za vključitev makrov in uporabo gumba Dodaj vrstico"]
[null,"Andreja Vihtelič","2016-10-28","V zvihek 5_druga_dokazila je dodano besedilo opombe"]
[null,"Andreja Vihtelič","2016-10-28","Dopolnjena so navodila glede kopiranja odpadkov na zavihkih 3_nenvar_in_nevar_odp in 4_komunalni_odp"]
[null,"Sašo Celarc","2016-11-07","Spremenil zaščito preko macrojev tako da se na zavihkih 3_nenevar_in_nevar_odp, 4_komunalni_odp lahko formatira vrstice"]
[null,"Andreja Vihtelič","2017-01-20","Sprememba letnice pri upravni taksi na listu Up_taksa"]
[null,"Andreja Vihtelič","2017-01-23","Popravek navodil"]
[null,"Sašo Celarc","2017-07-16","Popravek formule za * za nevarni/nenevarni odpadek na 3_nenevar_in_nevar_odp, da deluje tudi v excel 2007"]
[null,"Monolit","2018-09-17","Spremembe glede mejnik 1 po pogodbi 2551-18-100468"]
[null,"Monolit","2018-09-26","Ureditev problem, ker na listu 3-nenevarni_in_nevarni odpadki ni mogoče izbirati odpadkov od celice C5 dalje \nugotovil sem, da je bilo nekaj narobe z definicijo Rangov, predvidevam, da se je to dogajalo, ko so kopirali liste.\nDodaj vrstico v  Dodaj vrstico/vrstice"]

{"sheet":"navodila","index":1,"n_rows":63,"n_cols":2,"rows_kept":63,"cut":false,"hidden":true,"merged":[[1,0,1,1]]}
[]
["Navodila  za izpolnjevanje obrazca VLOGA ZA PRIDOBITEV/SPREMEMBO POTRDILA O VPISU V EVIDENCO ZBIRALCEV ODPADKOV"]
[]
["Zakonodajna osnova"]
[null,"30. člen Uredbe o odpadkih (UL RS, št. 37/15 in 69/15) določa, da zbiralec lahko zbira odpadke, če ima potrdilo o vpisu v evidenco zbiralcev odpadkov. Vloga za vpis v evidenco zbiralcev odpadkov se vloži na podlagi določb 31. člena v povezavi s 30. členom navedenega predpisa. Zbiralec mora spremembo imena ali naslova oziroma firme ali sedeža, ali spremembo glede vrste odpadkov, ki jih zbira, glede skupne količine odpadkov ali skupne količine nevarnih odpadkov, ki jih predhodno skladišči ali glede kraja ali zmogljivosti zbirnega centra prijaviti z vlogo na podlagi določb 34. člena navedenega predpisa. "]
["Namen"]
[null,"Obrazec je namenjen pripravi vloge za pridobitev/spremembo potrdila o vpisu v evidenco zbiralcev odpadkov, ki jo vodi ministrstvo v okviru evidence oseb, ki imajo potrdilo za opravljanje dejavnosti varstva okolja, v skladu z zakonom, ki ureja varstvo okolja."]
["Definicije pojmov, uporabljenih v obrazcu"]
[null,"Vsebina obrazca je usklajena s tistimi določili 30., 31. in 34. člena Uredbe o odpadkih (UL RS, št. 37/15 in 69/15), ki določajo vsebino vloge za pridobitev potrdila o vpisu v evidenco zbiralcev odpadkov oziroma vloge za spremembo potrdila o vpisu v evidenco zbiralcev odpadkov."]
[]
["Splošna navodila za izpolnjevanje obrazca"]
[null,"Obrazec, ki je dostopen na spletni strani Agencije RS za okolje (http://www.arso.gov.si/varstvo%20okolja/odpadki/obrazci/) pod rubriko \"Ravnanje z odpadki - splošno\" shranite na svoj računalnik. "]
[null,"Kliknite na gumb Omogoči vsebino poleg varnostnega opozorila pod menijsko vrstico, da omogočite izvajanje makrojev, če to ni omogočeno. Potrdite, da želite spremeniti to datoteko v zaupanja vreden dokument."]
[null,"Navedeni podatki v obrazcu vloge naj izkazujejo stanje glede števila lokacij in zmogljivosti zbirnih centrov in glede števila in vrste odpadkov ter občin (za izvajalce obvezne občinske gospodarske javne službe) za pridobitev 1.potrdila o vpisu v evidenco zbiralcev odpadkov oziroma stanje po 1. spremembi potrdila oz. stanje po nadaljnjih spremembah potrdila."]
[null,"Vnos podatkov je mogoč le v celice, ki nimajo senčenega ozadja."]
[null,"Obvezno je potrebno izpolniti podatke na zavihkih od \"stranka\" do vključno \"up_taksa\", razen na zavihku \"pooblasc\", če vas ne zastopa pooblaščenec. "]
[null,"Če imate več kot 3 zbirne centre, dodajte za \"1_zc_center3\" nov zavihek na naslednji način: zavihek \"1_zb_center3\", v katerega še niste vnesli podatkov, kopirajte in ga preimenujte v \"1_zb_center4\". Pri vnosu podatkov na novem zavihku najprej v celici J4 vnesite 4. Postopek ponovite za vse nadaljnje zbirne centre."]
[null,"Količine odpakov vnesite v kg brez decimalnih mest. Tudi podatki za površine naj bodo cela števila."]
[null,"Ko vnesete podatke v obrazec, ga shranite pod nazivom Vloga_zbiralec_maticna-vasega podjetja.xlsm (npr.: vloga_zbiralec_1234567000.xlsm). V primeru prejšnjih verzij Excela do 2003 je končnica v imenu datoteke xls."]
[null,"Natisnite zavihke izpolnjenega obrazca in sicer od zavihka \"stranka\" do vključno z zavihkom \"up_taksa\", razen zavihek \"pooblasc\", če v le tega niste vnesli podatkov.  S strani zakonitega zastopnika ali pooblaščenca podpisano papirno obliko vloge, vključno z obveznimi prilogami (v skladu z določili Uredbe o odpadkih, objavljene v UL RS, št. 37/15 in 69/15 ter v s skladu z drugimi predpisi s področja odpadkov  - v primeru predvidenega zbiranja odpadkov, katerih pravila zbiranja predpisov, so določena s specialnimi predpisi) pošljite na naslov: ARSO, Vojkova 1b, 1000 Ljubljana s pripisom: vloga za vpis v evidenco zbiralcev odpadkov.  Datoteko v Excelu pa pošljite na e-naslov: gp.arso@gov.si."]
[]
["Navodila za izpolnjevanje posameznega zavihka obrazca"]
["Zavihek \"stranka\""]
[null,"Izberite občino iz spustnega seznama (ob kliku na celico E16, se pojavi na desnem robu celice puščica, kliknite nanjo in izberite ustrezno občino)."]
[null,"Vnesite 8 mestno davčno številko."]
[null,"Vnesite 10 mestno matično številko (s tremi ničlami na koncu)."]
[null,"Registracijo za izvajanje dejavnosti zbiranja in odvoza odpadkov izberite iz seznama  (ob kliku na celico K24 se pojavi na desnem robu celice puščica, kliknite nanjo in izberite ustrezno - glede na registracijo podjetja po Standarni klasifikaciji dejavnosti)."]
[null,"V primeru vložene vloge za spremembo izdanega potrdila oz. spremembo izdane 1.,2. itd. odločbe o spremembi potrdila vnesite podatke za: Št. izdanega prvega potrdila (celica I29) , Datum izdaje (celica I30),  Številke in datumi odločb o spremembah potrdila (celica I31) in Opis spremembe (celica I32). Pri opisu spremembe navedite sledeče: dodaja se nov zbirni center ali ukinja se obstoječi zbirni center, previdena večja količina predhodno skladiščenih vseh odpadkov ali le nevarnih odpadkov, poveča se število zbranih vseh ali le nevarnih odpadkov (navedite številke), zmanjša se število vseh ali le nevarnih odpadkov (navedite številke). V primeru obsežnejšega opisa sprememb se le ta lahko opredeli v dodatni datoteki, ki je priložena k vlogi za spremembo. "]
["Zavihek \"pooblasc\"- vnesite le, če vas zastopa pooblaščenec"]
[null,"Vnesite 8 mestno davčno številko."]
[null,"Vnesite 10 mestno matično številko (s tremi ničlami na koncu)."]
["Zavihki \"1_zb_centeršt\""]
[null,"V obrazcu vloge za vpis v evidenco ali spremembe vpisa izpolnite toliko zavihkov, kolikor zbirnih centrov za predhodno skladiščenje odpadkov imate."]
[null,"Nazive zbirnih centrov opredelite z njihovimi imeni."]
[null,"Občino in vrsto upravljavca v celicah C12 in J13 izberete s klikom na omenjeni celici, na desnem robu se pojavi puščica, kliknete nanjo in iz spustnega seznama pri posamezni izberite ustrezno."]
[null,"Vnesite število \"0\", v primeru, da je podatek za količino v celicah  J16 ali J19 enako 0 kg."]
["Zavihek \"2_umestitev_zc\""]
[null,"Za vsak zbirni center vnesite lokacijske podatke. Pred vnosom v obrazec obvezno preverite podatke o parcelah (številke) v zemljiškem katastru, saj se podatki lahko spreminjajo. V primeru napačne navedbe katasterskih občin ali parcelnih številk ali številk stavb boste morali popravljen obrazec ponovno posredovati na ARSO."]
[null,"V stolpec \"Zap. št. zbirnega centra\" vnesite številke od 1 naprej, odvisno od števila zbirnih centrov. Zaporedna številka zbirnega centra naj se ponovi tolikokrat, kolikor različnih parcelnih številk imate. Če obstaja na parceli stavba, navedite njeno številko, če jih je več, številke stavb ločite z vejico in presledkom."]
[null,"Po potrebi dodajte vrstice. Pod rubriko \"Št. vrstic:\" vnesite število vrstic, ki jih želite dodati, nato kliknite na gumb Dodaj vrstico/vrstice."]
["Zavihek \"3_nenevar_in_nevar_odp\""]
[null,"Za vsak zbirni center vnesite samo odpadke, ki jih boste zbirali, tako da so številke odpadkov urejene (najmanjša naj bo zgoraj). Vnesejo se tisti odpadki, ki se NE zbirajo v okviru izvajanja obvezne občinske gospodarske javne službe zbiranja določenih vrst odpadkov."]
[null,"V stolpec \"Zap. št. zbirnega centra\" vnesite številke od 1 naprej, odvisno od števila zbirnih centrov. Zaporedna številka zbirnega centra naj se ponovi tolikokrat, kolikor različnih odpadkov boste zbirali v zbirnem centru. "]
[null,"Odpadek izberete s klikom na celico v stolpcu C, na desnem robu celice se pojavi puščica, kliknete nanjo in iz spustnega seznama izberite ustrezni odpadek. Podatki v stolpcih D in E se zapolnijo sami, glede na izbiro številke odpadka."]
[null,"Po potrebi dodajte vrstice. Pod rubriko \"Št. vrstic:\" vnesite število vrstic, ki jih želite dodati, nato kliknite na gumb Dodaj vrstico/vrstice."]
[null,"Če imate več zbirnih centrov in enake odpadke v njih, lahko vnesete odpadke najprej za  prvi zbirni center, nato pa te kopirate. Pri kopiranju označite le podatke v stolpcu C in jih kopirajte v prazne celice spodaj. Vsebino v praznih celicah v stolpcu B  vnesite tako, da označite blok celic, kjer boste vnesli novo zap.št. zbirnega centra, sledi vnos številke zbirnega centra in potrditev vnosa s CTRL+Enter.  Če imate vrstic z zap. št. zbirnih centrov in odpadki več kot 100, je potrebno pred kopiranjem najprej s kliki na gumb Dodaj vrstico dodati toliko vrstic, kot jih potrebujete za vnos podatkov."]
[null,"Po potrebi prilagodite višino vrstic."]
["Zavihek \"4_komunalni_odp\""]
[null,"Za vsak zbirni center vnesite komunalne odpadke, ki jih boste zbirali, tako da so številke odpadkov urejene (najmanjša naj bo zgoraj). Vnesejo se samo odpadki, ki jih zbira izvajalec obvezne občinske gospodarske javne službe zbiranja določenih vrst odapdkov v okviru izvajanje te službe. "]
[null,"V stolpec \"Zap. št. zbirnega centra\" vnesite številke od 1 naprej, odvisno od števila zbirnih centrov. Zaporedna številka zbirnega centra naj se ponovi tolikokrat, kolikor različnih komunalnih odpadkov boste zbirali v zbirnem centru. "]
[null,"Odpadek izberete s klikom na celico v stolpcu C, na desnem robu celice se pojavi puščica, kliknete nanjo in iz spustnega seznama izberite ustrezni odpadek. Podatki v stolpcih D in E se zapolnijo sami, glede na izbiro številke odpadka."]
[null,"Občino pri vsakem odpadku izberete s klikom na celico v stolpcu F, na desnem robu celice se pojavi puščica, kliknete nanjo in iz spustnega seznama izberite ustrezno občino."]
[null,"Po potrebi dodajte vrstico s klikom na gumb Dodaj vrstico."]
[null,"Če imate več zbirnih centrov in enake odpadke v njih, lahko vnesete odpadke najprej za  prvi zbirni center, nato pa te kopirate. Pri kopiranju označite le podatke v stolpcu C in jih kopirajte v prazne celice spodaj. Vsebino v praznih celicah v stolpcu B  vnesite tako, da označite blok celic, kjer boste vnesli novo zap.št. zbirnega centra, sledi vnos številke zbirnega centra in potrditev vnosa s CTRL+Enter.  Če imate vrstic z zap. št. zbirnih centrov in odpadki več kot 50, je potrebno pred kopiranjem najprej s kliki na gumb Dodaj vrstico dodati toliko vrstic, kot jih potrebujete za vnos podatkov."]
[null,"Po potrebi prilagodite višino vrstic."]
["Zavihek \"obvezne_priloge\""]
[null,"V stolpcu C kliknite v celico poleg navedene priloge, na desni se pojavi puščica, kliknite nanjo in izberite da ali ne (odvisno od tega ali boste posamezno prilogo dodali k vlogi ali ne). Opozorilo: v skladu z določbami predhodno navedenega predpisa o ravnanju z odpadki, sta navedeni prilogi obvezni in ju zato morate predložiti kot prilogi k obrazcu vloge."]
["Zavihek \"5_druga_dokazila\""]
[null,"V primeru, da boste k vlogi priložili še druga dokazila, ki niso navedena v zavihku \"obvezne_priloge\", jih navedite tu za vsak zbirni center posebej."]
[null,"V stolpec \"Zap. št. zbirnega centra\" vnesite številke od 1 naprej, odvisno od števila zbirnih centrov. Zaporedna številka zbirnega centra naj se ponovi tolikokrat, kolikor različnih dokazil imate za posamezni zbirni center. "]
[null,"Po potrebi dodajte vrstice. Pod rubriko \"Št. vrstic:\" vnesite število vrstic, ki jih želite dodati, nato kliknite na gumb Dodaj vrstico/vrstice."]
["Zavihek \"up_taksa\""]
[null,"Vnesite podatke v celice B12, J15, C21 in H21.  V celico H21 vnesite datum po 1.1.2016. Zakoniti zastopnik ali pooblaščenec se podpiše na tiskano obliko obrazca vloge."]

{"sheet":"stranka","index":2,"n_rows":46,"n_cols":10,"rows_kept":46,"cut":false,"hidden":false,"merged":[[40,1,40,13],[41,1,41,13],[42,1,42,13],[36,1,36,3],[36,4,36,13],[37,1,37,3],[37,4,37,13],[39,1,39,13],[33,1,33,13],[34,1,34,3],[34,4,34,8],[34,9,34,13],[35,1,35,3],[35,4,35,13],[14,1,14,3],[14,4,14,13],[16,2,16,3],[23,10,23,13],[19,2,19,3],[19,4,19,13],[20,10,20,13],[9,1,9,13],[10,1,10,13],[11,1,11,13],[13,1,13,3],[13,4,13,13],[12,1,12,13],[27,2,27,3],[22,4,22,13],[25,4,25,13],[26,4,26,13],[27,4,27,13],[24,4,24,13],[25,1,25,3],[26,2,26,3],[31,1,31,7],[31,8,31,13],[29,1,29,7],[29,8,29,13],[28,1,28,7],[0,1,8,13],[28,8,28,13],[30,1,30,7],[30,8,30,13],[15,4,15,13],[15,2,15,3],[21,1,21,3],[21,4,21,13],[16,4,16,13],[18,2,18,3],[18,4,18,13],[17,2,17,3],[17,4,17,13],[22,1,22,3],[24,1,24,3],[23,1,23,9]]}
[]
[]
[]
[]
[]
[]
[]
[]
[]
[null,"VLOGA ZA PRIDOBITEV / SPREMEMBO OKOLJEVARSTVENEGA DOVOLJENJA ZA OBDELAVO ODPADKOV NA PREMIČNI NAPRAVI NA OBMOČJU GRADBIŠČ"]
[null,"Na podlagi 39. člena Uredbe o odpadkih (Uradni list RS, št.  77/22, 113/23 in 13/25), Uredbe o obdelavi odpadkov v premičnih napravah (Uradni list RS, št. 34/08 in 44/22 - ZVO-2) in Uredbe o ravnanju z odpadki, ki nastanejo pri gradbenih delih (Uradni list RS, št. 34/08 in 44/22 - ZVO-2)"]
[null,"Podatki o stranki"]
[null,"Opomba:  (1) - naziv pravne osebe ali samostojnega podjetnika posameznika se navede kot je navedeno v poslovnem registru"]
[null," NAZIV stranke (1):"]
[null," Naslov oziroma sedež:"]
[null,null,"občina:"]
[null,null,"naselje:"]
[null,null,"ulica:"]
[null,null,"hišna številka:"]
[null,null,"pošta:"]
[null,null,"poštna številka:",null," "," "," "," "]
[null,"Davčna številka:"]
[null,"Matična številka:"]
[null,"Registracija za izvajanje dejavnost predelave odpadkov (izbrati eno od navedenih možnosti):"]
[null,"Zakoniti zastopnik:"]
[null,"Kontaktna oseba:"]
[null,null,"telefon:"]
[null,null,"e-naslov:"]
[null,"  Št. izdanega prvega dovoljenja :"]
[null,"Datum izdaje:"]
[null,"Številke in datumi odločb o spremembah dovoljenja:"]
[null,"Opis spremembe:"]
[]
[null,"Elektronsko vročanje"]
[null,"Želim elektronsko vročanje (1) ",null,null,"DA(2) ",null,null,null,null,"NE(3) "]
[null,"Naslov elektronskega predala:"]
[null,"Naslov navadnega elektronskega predala:"]
[null,"Mobilna številka (4) "]
[]
[null,"[1] Na podlagi drugega odstavka 86. člena ZUP se lahko  dokumenti vročajo v elektronski obliki. V kolikor elektronski naslov, naveden v prejšnji tabeli, ni enak naslovu za elektronsko vročanje, je treba navesti elektronski naslov za elektronsko vročanje. V primeru, da elektronskega naslova za elektronsko vročanje ne navedete, vam bodo dokumenti vročeni elektronsko na elektronski naslov, iz katerega je bila posredovana vloga. V kolikor imate varen elektronski predla, se navede elektronski naslov varnega e-predala."]
[null,"[2] V kolikor želite elektronsko vročanje, izpolnite ustrezno rubriko. "]
[null,"[3] V kolikor ne želite elektronskega vročanja, predložite izrecno izjavo, da želite vročanje po fizični poti."]
[null,"[4] Mobilna številka se bo uporabila izključno samo za namen elektronskega vročanja."]
[]
[]
[null,"2026-07-22"]

{"sheet":"pooblasc","index":3,"n_rows":30,"n_cols":10,"rows_kept":30,"cut":false,"hidden":false,"merged":[[24,1,24,13],[25,1,25,13],[26,1,26,13],[20,1,20,3],[20,4,20,13],[21,1,21,3],[21,4,21,13],[23,1,23,13],[17,1,17,13],[18,1,18,3],[18,4,18,8],[18,9,18,13],[19,1,19,3],[19,4,19,13],[1,1,1,13],[3,1,3,3],[3,4,3,13],[4,1,4,3],[4,4,4,13],[6,2,6,3],[6,4,6,13],[7,2,7,3],[7,4,7,13],[10,1,10,3],[10,4,10,13],[15,2,15,3],[15,4,15,13],[2,1,2,13],[11,4,11,13],[12,1,12,3],[12,4,12,13],[13,1,13,3],[13,4,13,13],[14,2,14,3],[14,4,14,13],[8,2,8,3],[8,4,8,13],[11,1,11,3],[9,10,9,13],[5,2,5,3],[5,4,5,13]]}
[]
[null,"Podatki o pooblaščencu, ki zastopa stranko (2)"]
[null,"Opomba:  (2) - rubrika se izpolni le v primeru, če stranko zastopa pooblaščenec; k vlogi mora biti priloženo pooblastilo stranke"]
[null," Ime oz. naziv pooblaščenca:"]
[null," Naslov oziroma sedež:"]
[null,null,"naselje:"]
[null,null,"ulica:"]
[null,null,"hišna številka:"]
[null,null,"pošta:"]
[null,null,"poštna številka:",null,null," "," "," "]
[null,"Davčna številka:"]
[null,"Matična številka:"]
[null,"Zakoniti zastopnik:"]
[null,"Kontaktna oseba:"]
[null,null,"telefon:"]
[null,null,"e-naslov:"]
[]
[null,"Elektronsko vročanje"]
[null,"Želim elektronsko vročanje (1) ",null,null,"DA(2) ",null,null,null,null,"NE(3) "]
[null,"Naslov elektronskega predala:"]
[null,"Naslov navadnega elektronskega predala:"]
[null,"Mobilna številka (4) "]
[]
[null,"[1] Na podlagi drugega odstavka 86. člena ZUP se lahko  dokumenti vročajo v elektronski obliki. V kolikor elektronski naslov, naveden v prejšnji tabeli, ni enak naslovu za elektronsko vročanje, je treba navesti elektronski naslov za elektronsko vročanje. V primeru, da elektronskega naslova za elektronsko vročanje ne navedete, vam bodo dokumenti vročeni elektronsko na elektronski naslov, iz katerega je bila posredovana vloga. V kolikor imate varen elektronski predla, se navede elektronski naslov varnega e-predala."]
[null,"[2] V kolikor želite elektronsko vročanje, izpolnite ustrezno rubriko. "]
[null,"[3] V kolikor ne želite elektronskega vročanja, predložite izrecno izjavo, da želite vročanje po fizični poti."]
[null,"[4] Mobilna številka se bo uporabila izključno samo za namen elektronskega vročanja."]
[]
[]
[null,"2025-06-09"]

{"sheet":"izjava o ne eVročanju","index":4,"n_rows":11,"n_cols":9,"rows_kept":11,"cut":false,"hidden":false,"merged":[[10,1,10,3],[0,0,0,14],[2,0,2,14],[6,8,6,13],[7,5,7,6],[7,8,7,13],[9,1,9,3]]}
["I Z J A V A"]
[]
["Stranka _____________________________, ki jo zastopa ________________________, na podlagi četrtega odstavka 86. člena Zakona o splošnem upravnem postopku (Uradni list RS, št. 24/06 – uradno prečiščeno besedilo, 105/06 – ZUS-1, 126/07, 65/08, 8/10, 82/13, 175/20 – ZIUOPDVE in 3/22 – ZDeb) podaja izjavo, da v zadevi, za katero vlaga predmetno vlogo, želi fizično vročitev vseh dokumentov."]
[]
[]
[]
[]
[null,null,null,null,null,"žig",null,null,"(Ime in priimek zakonitega zastopnika, njegov podpis)"]
[]
["Kraj:"]
["Datum:"]

{"sheet":"1_podatki_o_napravi","index":5,"n_rows":33,"n_cols":2,"rows_kept":33,"cut":false,"hidden":false,"merged":[[1,1,1,2],[32,1,32,2]]}
[]
[null,"1. Podatki o premični napravi za obdelavo gradbenih odpadkov"]
[null,"Naziv naprave:"]
[null,"Največja zmogljivost naprave (tone/uro):"]
[null,"Skupna letna količina predelanih odpadkov (tonah):"]
[null,"ID stavbe iz registra stavb, v primeru predelave v ali ob stavbi*:"]
[null,"a) Opis delov naprave, ki zagotavljajo njeno premičnost"]
[null,"b) Opis pogojev za postavitev premične naprave na mesto obdelave odpadkov "]
[null,"c) Opis odpadkov, ki bodo nastali zaradi obratovanja in vzdrževanja premične naprave, ter način ravnanja z njimi "]
[null,"d) Podatki o emisijah, ki bodo nastajale zaradi obratovanja premične naprave in spremljajoče opreme (hrup, prah, izpušni plini, izcedne vode…)"]
[null,"e) Podatki o izpolnjevanju zahtev predpisov, ki urejajo hrup strojev, uporabljenih na prostem in emisij snovi v zrak iz motorjev z notranjim izgorevanjem vgrajenih v izvencestne premične stroje, če so vgrajenih premično napravo "]
[null,"f) Opis naprave za merjenje emisij in naprav za ugotavljanje obremenjenosti okolja kot posledice emisij iz premične naprave "]
[null,"Predelava bo potekala na območjih gradbišč, ki bodo urejena v skladu z veljavnimi predpisi s področja graditve objektov. V primeru izbire \"da\",  je potrebno za gradbišča izpolniti tudi spodnje rubrike"]
[null,"Vrsta gradbišča, skladno z 2. členom Uredbe o preprečevanju in zmanjševanju emisije delcev iz gradbišč (Uradni list RS, št. 21/11, 197/21 in 44/22 - ZVO-2) (izbrati da ali ne):"]
[null,"- izvajanje gradbenih del traja več kot 12 mesecev, ali"]
[null," - na območju naselja, ki ima status mesta, če površina gradbišča presega 4 000 m² ali prostornina gradbišča presega 10 000 m³, ali"]
[null," - na območju degradiranega okolja, če površina gradbišča presega 4 000 m² ali prostornina gradbišča presega 10 000 m³, ali"]
[null," - na območju, ki ni območje iz prejšnje alineje, če površina gradbišča presega 10 000 m² ali prostornina gradbišča presega 20 000 m³  "]
[null,"Opredelitev do ukrepov, skladno s 6. členom Uredbe o preprečevanju in zmanjševanju emisije delcev iz gradbišč Uradni list RS, št. 21/11, 197/21 in 44/22 - ZVO-2), ki se morajo pri izvajanju del, pri katerih nastaja izrazita emisija delcev, uporabljati  za preprečevanje in zmanjševanje emisije delcev. Spodaj navedene ukrepe opišite v načrtu ravnanja z odpadki."]
[null,"- prepovedano je prašno usedlino odstranjevati s pihanjem, prašne površine čistiti s stisnjenim zrakom ali čistiti na območju gradbišča s suhim pometanjem"]
[null," - prašne usedline je treba odstranjevati z vlažnim ali mokrim postopkom glede na stanje tehnike ali s sesalnim postopkom z uporabo primernega sesalnika za prah ali prašne usedline"]
[null," - prah je treba vezati na površinah materialov z vzdrževanjem vlažnosti materiala, na primer z avtomatsko vodenim ali ročnim vodnim škropljenjem"]
[null," - pri premeščanju in pretovarjanju je treba gradbene odpadke odmetavati z višine, ki ni večja od višine posod ali zabojnikov za zbiranje in prevažanje gradbenih odpadkov. Če se tehnično ne da izogniti odmetavanju gradbenih odpadkov z večjih višin, kot je višina posod ali zabojnikov, ki se uporabljajo za zbiranje in prevažanje gradbenih odpadkov, je treba uporabiti padne cevi ali pokrite drče za gradbene odpadke, konce padnih cevi pa je treba z manšetami povezati neprepustno za prah"]
[null," - pri premeščanju in pretovarjanju je treba uporabljati majhne izstopne hitrosti transportnih sistemov"]
[null," - pri premeščanju in pretovarjanju je treba gradbene odpadke zbirati in prevažati v zaprtih ali pokritih posodah ali zabojnikih"]
[null," - pri rušenju objektov je prepovedano odmetavati tramove, gradbeno pohištvo in lahke gradbene elemente ter jih odlagati ali premeščati ročno ali z gradbenimi dvigali"]
[null," - rušenje ali razgradnjo objektov je treba izvesti, če je tehnično možno, v velikih kosih, prah pa je treba vezati na gradbeni material z omočenjem"]
[null," - na gradbišču je prepovedano obdelovati gradbene odpadke z drugih gradbišč"]
[null," - pri odstranitvi objekta je treba zaradi zmanjševanja prašenja uporabljati pokrove in zaporne stene za preprečevanje širjenja prahu"]
[null," - transportni trakovi morajo biti popolnoma pokriti ali zaprti"]
[null," - pri odstranitvi objekta z velikimi površinami in razstreljevanju večjega objekta, pri katerem ni mogoče izdelati pokrovov in zapornih sten, je treba predvideti primerno alternativno vezavo prahu, kot je na primer močno omočenje ali vodna zavesa"]
[]
[null,"* vnesite le ID stavbe v primeru, da obdelava traja več kot 30 dni in manj od 6 mesecev (določbi  v 1.odst. 4.čl. in  2.odst. 11.čl. Uredbe o obdelavi odpadkov v premičnih napravah). KO in parc.št. vnesite na zavihek 2_umestitev."]

{"sheet":"2_umestitev","index":6,"n_rows":17,"n_cols":6,"rows_kept":17,"cut":false,"hidden":false,"merged":[[2,1,2,6],[3,4,3,6],[1,2,1,6]]}
[]
[null,null,"2. Umestitev premične naprave za obdelavo odpadkov (samo v primeru predelave na prostem nad 30 dni v obdobju 6 mesecev)"]
[]
[null,null,"naziv KO","številka KO","številka parcele"]
[null,null,null,null,null,{"$f":"\"/\"","v":"/"}]
[null,null,null,null,null,{"$f":"\"/\"","v":"/"}]
[null,null,null,null,null,"/"]
[null,null,null,null,null,"/"]
[null,null,null,null,null,"/"]
[null,null,null,null,null,"/"]
[null,null,null,null,null,"/"]
[null,null,null,null,null,"/"]
[null,null,null,null,null,"/"]
[null,null,null,null,null,"/"]
[]
[]
["Št. vrstic:",4]

{"sheet":"3_nenevar_in_nev_odp","index":7,"n_rows":22,"n_cols":7,"rows_kept":22,"cut":false,"hidden":false,"merged":[[2,1,2,4],[1,1,1,5]]}
[]
[null,"3. Podatki o gradbenih odpadkih, ki se bodo obdelovali"]
[]
[null,"Št. odpadka (izbrati iz spustnega seznama)","Nevaren","Naziv odpadka","Postopek predelave","Izvor odpadka"]
[null,null,{"$f":"IF(ISNA(IF(VLOOKUP(B5,SIFRANT_ODPADKOV,3,FALSE)=\"*\",\"*\",\"\")),\"\",IF(VLOOKUP(B5,SIFRANT_ODPADKOV,3,FALSE)=\"*\",\"*\",\"\"))","v":""},{"$f":"IF(ISNA(VLOOKUP(B5,SIFRANT_ODPADKOV,2,FALSE)),\"\",VLOOKUP(B5,SIFRANT_ODPADKOV,2,FALSE))","v":""},null,null,{"$f":"IF(ISNA(OFFSET(ODP_sifrant_r_d!$B$1,MATCH(E5,R_D_POSTOPKI,0),-1)),\"\",OFFSET(ODP_sifrant_r_d!$B$1,MATCH(E5,R_D_POSTOPKI,0),-1))","v":""}]
[null,null,"","",null,null,{"$f":"IF(ISNA(OFFSET(ODP_sifrant_r_d!$B$1,MATCH(E6,R_D_POSTOPKI,0),-1)),\"\",OFFSET(ODP_sifrant_r_d!$B$1,MATCH(E6,R_D_POSTOPKI,0),-1))","v":""}]
[null,null,"","",null,null,{"$f":"IF(ISNA(OFFSET(ODP_sifrant_r_d!$B$1,MATCH(E7,R_D_POSTOPKI,0),-1)),\"\",OFFSET(ODP_sifrant_r_d!$B$1,MATCH(E7,R_D_POSTOPKI,0),-1))","v":""}]
[null,null,"","",null,null,{"$f":"IF(ISNA(OFFSET(ODP_sifrant_r_d!$B$1,MATCH(E8,R_D_POSTOPKI,0),-1)),\"\",OFFSET(ODP_sifrant_r_d!$B$1,MATCH(E8,R_D_POSTOPKI,0),-1))","v":""}]
[null,null,"","",null,null,{"$f":"IF(ISNA(OFFSET(ODP_sifrant_r_d!$B$1,MATCH(E9,R_D_POSTOPKI,0),-1)),\"\",OFFSET(ODP_sifrant_r_d!$B$1,MATCH(E9,R_D_POSTOPKI,0),-1))","v":""}]
[null,null,{"$f":"IF(ISNA(IF(VLOOKUP(B10,SIFRANT_ODPADKOV,3,FALSE)=\"*\",\"*\",\"\")),\"\",IF(VLOOKUP(B10,SIFRANT_ODPADKOV,3,FALSE)=\"*\",\"*\",\"\"))","v":""},{"$f":"IF(ISNA(VLOOKUP(B10,SIFRANT_ODPADKOV,2,FALSE)),\"\",VLOOKUP(B10,SIFRANT_ODPADKOV,2,FALSE))","v":""},null,null,{"$f":"IF(ISNA(OFFSET(ODP_sifrant_r_d!$B$1,MATCH(E10,R_D_POSTOPKI,0),-1)),\"\",OFFSET(ODP_sifrant_r_d!$B$1,MATCH(E10,R_D_POSTOPKI,0),-1))","v":""}]
[null,null,"","",null,null,{"$f":"IF(ISNA(OFFSET(ODP_sifrant_r_d!$B$1,MATCH(E11,R_D_POSTOPKI,0),-1)),\"\",OFFSET(ODP_sifrant_r_d!$B$1,MATCH(E11,R_D_POSTOPKI,0),-1))","v":""}]
[null,null,{"$f":"IF(ISNA(IF(VLOOKUP(B12,SIFRANT_ODPADKOV,3,FALSE)=\"*\",\"*\",\"\")),\"\",IF(VLOOKUP(B12,SIFRANT_ODPADKOV,3,FALSE)=\"*\",\"*\",\"\"))","v":""},{"$f":"IF(ISNA(VLOOKUP(B12,SIFRANT_ODPADKOV,2,FALSE)),\"\",VLOOKUP(B12,SIFRANT_ODPADKOV,2,FALSE))","v":""},null,null,{"$f":"IF(ISNA(OFFSET(ODP_sifrant_r_d!$B$1,MATCH(E12,R_D_POSTOPKI,0),-1)),\"\",OFFSET(ODP_sifrant_r_d!$B$1,MATCH(E12,R_D_POSTOPKI,0),-1))","v":""}]
[null,null,"","",null,null,{"$f":"IF(ISNA(OFFSET(ODP_sifrant_r_d!$B$1,MATCH(E13,R_D_POSTOPKI,0),-1)),\"\",OFFSET(ODP_sifrant_r_d!$B$1,MATCH(E13,R_D_POSTOPKI,0),-1))","v":""}]
[null,null,"","",null,null,{"$f":"IF(ISNA(OFFSET(ODP_sifrant_r_d!$B$1,MATCH(E14,R_D_POSTOPKI,0),-1)),\"\",OFFSET(ODP_sifrant_r_d!$B$1,MATCH(E14,R_D_POSTOPKI,0),-1))","v":""}]
[null,null,"","",null,null,{"$f":"IF(ISNA(OFFSET(ODP_sifrant_r_d!$B$1,MATCH(E15,R_D_POSTOPKI,0),-1)),\"\",OFFSET(ODP_sifrant_r_d!$B$1,MATCH(E15,R_D_POSTOPKI,0),-1))","v":""}]
[null,null,{"$f":"IF(ISNA(IF(VLOOKUP(B16,SIFRANT_ODPADKOV,3,FALSE)=\"*\",\"*\",\"\")),\"\",IF(VLOOKUP(B16,SIFRANT_ODPADKOV,3,FALSE)=\"*\",\"*\",\"\"))","v":""},{"$f":"IF(ISNA(VLOOKUP(B16,SIFRANT_ODPADKOV,2,FALSE)),\"\",VLOOKUP(B16,SIFRANT_ODPADKOV,2,FALSE))","v":""},null,null,{"$f":"IF(ISNA(OFFSET(ODP_sifrant_r_d!$B$1,MATCH(E16,R_D_POSTOPKI,0),-1)),\"\",OFFSET(ODP_sifrant_r_d!$B$1,MATCH(E16,R_D_POSTOPKI,0),-1))","v":""}]
[null,null,"","",null,null,{"$f":"IF(ISNA(OFFSET(ODP_sifrant_r_d!$B$1,MATCH(E17,R_D_POSTOPKI,0),-1)),\"\",OFFSET(ODP_sifrant_r_d!$B$1,MATCH(E17,R_D_POSTOPKI,0),-1))","v":""}]
[null,null,"","",null,null,{"$f":"IF(ISNA(OFFSET(ODP_sifrant_r_d!$B$1,MATCH(E18,R_D_POSTOPKI,0),-1)),\"\",OFFSET(ODP_sifrant_r_d!$B$1,MATCH(E18,R_D_POSTOPKI,0),-1))","v":""}]
[null,null,"","",null,null,{"$f":"IF(ISNA(OFFSET(ODP_sifrant_r_d!$B$1,MATCH(E19,R_D_POSTOPKI,0),-1)),\"\",OFFSET(ODP_sifrant_r_d!$B$1,MATCH(E19,R_D_POSTOPKI,0),-1))","v":""}]
[null,null,"","",null,null,{"$f":"IF(ISNA(OFFSET(ODP_sifrant_r_d!$B$1,MATCH(E20,R_D_POSTOPKI,0),-1)),\"\",OFFSET(ODP_sifrant_r_d!$B$1,MATCH(E20,R_D_POSTOPKI,0),-1))","v":""}]
[]
["Št. vrstic:",5]

{"sheet":"4_po_obdelavi_nastalo","index":8,"n_rows":22,"n_cols":5,"rows_kept":22,"cut":false,"hidden":false,"merged":[[1,1,1,4]]}
[]
[null,"4. Po obdelavi nastali odpadki"]
[]
[null,"Št. odpadka (izbrati iz spustnega seznama)","Nevaren","Naziv odpadka","Odpadek ali preostanek odpadka"]
[null,null,{"$f":"IF(ISNA(IF(VLOOKUP(B5,SIFRANT_ODPADKOV,3,FALSE)=\"*\",\"*\",\"\")),\"\",IF(VLOOKUP(B5,SIFRANT_ODPADKOV,3,FALSE)=\"*\",\"*\",\"\"))","v":{"$error":"#REF!"}},{"$f":"IF(ISNA(VLOOKUP(B5,SIFRANT_ODPADKOV,2,FALSE)),\"\",VLOOKUP(B5,SIFRANT_ODPADKOV,2,FALSE))","v":{"$error":"#REF!"}}]
[null,null,{"$error":"#REF!"},{"$error":"#REF!"}]
[null,null,{"$error":"#REF!"},{"$error":"#REF!"}]
[null,null,{"$error":"#REF!"},{"$error":"#REF!"}]
[null,null,{"$error":"#REF!"},{"$error":"#REF!"}]
[null,null,{"$error":"#REF!"},{"$error":"#REF!"}]
[null,null,{"$error":"#REF!"},{"$error":"#REF!"}]
[null,null,{"$error":"#REF!"},{"$error":"#REF!"}]
[null,null,{"$error":"#REF!"},{"$error":"#REF!"}]
[null,null,{"$error":"#REF!"},{"$error":"#REF!"}]
[null,null,{"$f":"IF(ISNA(IF(VLOOKUP(B15,SIFRANT_ODPADKOV,3,FALSE)=\"*\",\"*\",\"\")),\"\",IF(VLOOKUP(B15,SIFRANT_ODPADKOV,3,FALSE)=\"*\",\"*\",\"\"))","v":{"$error":"#REF!"}},{"$f":"IF(ISNA(VLOOKUP(B15,SIFRANT_ODPADKOV,2,FALSE)),\"\",VLOOKUP(B15,SIFRANT_ODPADKOV,2,FALSE))","v":{"$error":"#REF!"}}]
[null,null,{"$error":"#REF!"},{"$error":"#REF!"}]
[null,null,{"$error":"#REF!"},{"$error":"#REF!"}]
[null,null,{"$error":"#REF!"},{"$error":"#REF!"}]
[null,null,{"$error":"#REF!"},{"$error":"#REF!"}]
[null,null,{"$error":"#REF!"},{"$error":"#REF!"}]
[]
["Št. vrstic:",6]

{"sheet":"5_obvezne_priloge","index":9,"n_rows":9,"n_cols":4,"rows_kept":9,"cut":false,"hidden":false,"merged":[]}
[]
[null,null,"5. Priloge k vlogi - obvezna priložena dokazila "]
[]
[null,null,"Naziv priloge                                                                                                                                                                                                                                                                                                                                                              "]
[null,null,null,{"$f":"IF(ISNA(VLOOKUP(C5,SIFRANT_PRILOG,3,FALSE)),\"\",VLOOKUP(C5,SIFRANT_PRILOG,3,FALSE))","v":""}]
[null,null,null,{"$f":"IF(ISNA(VLOOKUP(C6,SIFRANT_PRILOG,3,FALSE)),\"\",VLOOKUP(C6,SIFRANT_PRILOG,3,FALSE))","v":""}]
[null,null,null,{"$f":"IF(ISNA(VLOOKUP(C7,SIFRANT_PRILOG,3,FALSE)),\"\",VLOOKUP(C7,SIFRANT_PRILOG,3,FALSE))","v":""}]
[null,null,null,{"$f":"IF(ISNA(VLOOKUP(C8,SIFRANT_PRILOG,3,FALSE)),\"\",VLOOKUP(C8,SIFRANT_PRILOG,3,FALSE))","v":""}]
[null,null,null,{"$f":"IF(ISNA(VLOOKUP(C9,SIFRANT_PRILOG,3,FALSE)),\"\",VLOOKUP(C9,SIFRANT_PRILOG,3,FALSE))","v":""}]

{"sheet":"6_druga_dokazila","index":10,"n_rows":22,"n_cols":3,"rows_kept":22,"cut":false,"hidden":false,"merged":[]}
[]
[null,null,"6. Druga dokazila"]
[]
[null,null,"Dokazilo (naziv dokumenta, št. dokumenta, datuma izdaje, izdajatelja, itd.)"]
[]
[]
[]
[]
[]
[]
[]
[]
[]
[]
[]
[]
[]
[]
[]
[]
[]
["Št. vrstic:",5]

{"sheet":"up_taksa","index":11,"n_rows":23,"n_cols":18,"rows_kept":23,"cut":false,"hidden":false,"merged":[[14,9,14,12],[20,2,20,5],[20,7,20,8],[1,1,1,13],[3,1,3,13],[5,1,5,13],[9,1,9,4],[12,9,12,12],[11,1,11,4],[10,2,10,4],[7,1,7,13]]}
[]
[null,"Upravna taksa:",null,null,null,null,null,null,null,null,null,null,null,null,null,null,"V kolikor se upravna taksa plača na podračun Ministrtva za okolje in prostor, se znesek upravne takse - državne (namen plačila) nakaže na račun št. 0110-0100-0315-637, referenca 11 25704-7111002-35460","."]
[null,null,null,null,null,null,null,null,null,null,null,null,null,null,null,null,{"$f":"MID(YEAR(TODAY()),2,4)","v":"026"},"."]
[null,"Za vlogo je potrebno v skladu s tar.št. 1 in št. 3 taksne tarife Zakona o upravnih taksah (Uradni list RS, št. 106/10-UPB, 14/15-ZUUJFO, 84/15-ZZelP-J, 32/16, 30/18-ZKZaš in 189/20-ZFRO) plačati upravno takso v višini 22,60 EUR. Upravno takso se plača v gotovini ali z drugim veljavnim plačilnim instrumentom in o plačilu predloži ustrezno potrdilo."]
[]
[null,{"$f":"Q2&Q3&\".\"","v":"V kolikor se upravna taksa plača na podračun Ministrtva za okolje in prostor, se znesek upravne takse - državne (namen plačila) nakaže na račun št. 0110-0100-0315-637, referenca 11 25704-7111002-35460026."}]
[]
[null,"TAKSE NE PLAČUJEJO:\n  - država in državni organi,\n  - občine in njihovi organi,\n  - javni skladi, javne agencije ter druge osebe javnega prava itd.\nDruge osebe javnega prava so npr. javna podjetja za opravljanje komunalnih dejavnosti v občinah, javni zavodi (npr. osnovne in srednje šole, bolnišnice, NLZOH), itd."]
[]
[null,"vlogo pripravil-a:"]
[]
[]
[null,null,null,null,null,null,null,null,null,"podpis zakonitega zastopnika ali pooblaščenca"]
[]
[]
[]
[]
[]
[]
[]
[null,"V/Na",null,null,null,null," , dne"]
[]
[null,null,null,null,null,null,null,null,null,null,null,null,35460]

{"sheet":"sifrant_odpadkov","index":12,"n_rows":138,"n_cols":4,"rows_kept":138,"cut":false,"hidden":true,"merged":[]}
["Številka odpadka ","Naziv odpadka ","Nevarnost odpadka","ID"]
["17 01 01","Beton",null,1560]
["17 01 02","Opeke",null,1561]
["17 01 03","Ploščice in keramika",null,1562]
["17 01 06","Mešanice ali ločene frakcije betona, opeke, ploščic in keramike, ki vsebujejo nevarne snovi","*",1109]
["17 01 07","Mešanice betona, opeke, ploščic in keramike, ki niso navedene v 17 01 06",null,1563]
["17 02 01","Les",null,1564]
["17 02 02","Steklo",null,1565]
["17 02 03","Plastika",null,1566]
["17 02 04","Steklo, plastika in les, ki vsebujejo nevarne snovi, ali so z njimi onesnaženi","*",1110]
["17 03 01","Bitumenske mešanice, ki vsebujejo premogov katran","*",1246]
["17 03 02","Bitumenske mešanice, ki niso navedene v 17 03 01",null,1567]
["17 03 03","Premogov katran in proizvodi, ki vsebujejo katran","*",1247]
["17 04 01","Baker, bron, medenina",null,1568]
["17 04 02","Aluminij",null,1569]
["17 04 03","Svinec",null,1570]
["17 04 04","Cink",null,1571]
["17 04 05","Železo in jeklo",null,1572]
["17 04 06","Kositer",null,1573]
["17 04 07","Mešanice kovin",null,1574]
["17 04 09","Kovinski odpadki, onesnaženi z nevarnimi snovmi","*",1248]
["17 04 10","Kabli, ki vsebujejo olje, premogov katran in druge nevarne snovi","*",1249]
["17 04 11","Kabli, ki niso navedeni v 17 04 10",null,1575]
["17 05 03","Zemlja in kamenje, ki vsebujeta nevarne snovi","*",1250]
["17 05 04","Zemlja in kamenje, ki nista navedena v 17 05 03",null,1576]
["17 05 05","Material, izkopan pri poglabljanju dna z bagranjem, ki vsebuje nevarne snovi","*",1251]
["17 05 06","Material, izkopan pri poglabljanju dna z bagranjem, ki ni naveden v 17 05 05",null,1577]
["17 05 07","Tolčenec izpod železniških tirov in pragov, ki vsebuje nevarne snovi","*",1252]
["17 05 08","Tolčenec izpod železniških tirov in pragov, ki ni naveden v 17 05 07",null,1578]
["17 06 01","Izolirni materiali, ki vsebujejo azbest","*",1253]
["17 06 03","Drugi izolirni materiali, ki sestojijo iz nevarnih snovi ali jih vsebujejo","*",1254]
["17 06 04","Izolirni materiali, ki niso navedeni v 17 06 01 in 17 06 03",null,1579]
["17 06 05","Gradbeni materiali, ki vsebujejo azbest","*",1255]
["17 08 01","Gradbeni materiali na osnovi sadre, ki so onesnaženi z nevarnimi snovmi","*",1256]
["17 08 02","Gradbeni materiali na osnovi sadre, ki niso navedeni v 17 08 01",null,1580]
["17 09 01","Gradbeni odpadki in odpadki iz rušenja objektov, ki vsebujejo živo srebro","*",1257]
["17 09 02","Gradbeni odpadki in odpadki iz rušenja objektov, ki vsebujejo PCB (npr. tesnilne mase, ki vsebujejo PCB, talne obloge na osnovi smol, ki vsebujejo PCB, zasteklitve z izolirnimi stekli, ki vsebujejo PCB, in kondenzatorji, ki vsebujejo PCB)","*",1258]
["17 09 03","Drugi gradbeni odpadki in odpadki iz rušenja objektov (vključno z mešanicami odpadkov), ki vsebujejo nevarne snovi","*",1259]
["17 09 04","Mešanice gradbeni odpadkov in odpadkov iz rušenja objektov, ki niso navedene v 17 09 01, 17 09 02 in 17 09 03",null,1581]
["19 01 02","Železni materiali, izločeni iz ogorkov",null,1438]
["19 01 05","Filtrne pogače iz čiščenja odpadnih plinov","*",1267]
["19 01 06","Odpadne vodne raztopine iz čiščenja odpadnih plinov in druge odpadne vodne raztopine","*",1268]
["19 01 07","Trdni odpadki iz čiščenja odpadnih plinov","*",1269]
["19 01 10","Izrabljeno aktivno oglje iz čiščenja dimnih plinov","*",1270]
["19 01 11","Ogorki in žlindra, ki vsebujejo nevarne snovi","*",1271]
["19 01 12","Ogorki in žlindra, ki niso navedeni v 19 01 11",null,1439]
["19 01 13","Elektrofiltrski pepel, ki vsebuje nevarne snovi","*",1272]
["19 01 14","Elektrofiltrski pepel, ki ni naveden v 19 01 13",null,1440]
["19 01 15","Kotlovski prah, ki vsebuje nevarne snovi","*",1273]
["19 01 16","Kotlovski prah, ki ni naveden v 19 01 15",null,1441]
["19 01 17","Odpadki, ki vsebujejo nevarne snovi, iz pirolize","*",1274]
["19 01 18","Odpadki iz pirolize, ki niso navedeni v 19 01 17",null,1442]
["19 01 19","Peski iz kurišč na lebdečo plast",null,1443]
["19 01 99","Odpadki, ki niso navedeni drugje",null,1444]
["19 02 03","Pomešani odpadki, ki sestojijo samo iz nenevarnih odpadkov",null,1445]
["19 02 04","Pomešani odpadki, ki vsebujejo vsaj en nevarni odpadek","*",1275]
["19 02 05","Mulji, ki vsebujejo nevarne snovi, iz fizikalno-kemične obdelave","*",1276]
["19 02 06","Mulji iz fizikalno-kemične obdelave, ki niso navedeni v 19 02 05",null,1446]
["19 02 07","Olja in koncentrati iz postopkov ločevanja","*",1277]
["19 02 08","Tekoči gorljivi odpadki, ki vsebujejo nevarne snovi","*",1278]
["19 02 09","Trdni gorljivi odpadki, ki vsebujejo nevarne snovi","*",1279]
["19 02 10","Gorljivi odpadki, ki niso navedeni v 19 02 08 in 19 02 09",null,1447]
["19 02 11","Drugi odpadki, ki vsebujejo nevarne snovi","*",1280]
["19 02 99","Odpadki, ki niso navedeni drugje",null,1448]
["19 03 04","Odpadki, označeni kot nevarni, delno stabilizirani, razen 19 03 08","*",1281]
["19 03 05","Stabilizirani odpadki, ki niso navedeni v 19 03 04",null,1449]
["19 03 06","Odpadki, označeni kot nevarni, solidificirani","*",1282]
["19 03 07","Solidificirani odpadki, ki niso navedeni v 19 03 06",null,1450]
["19 03 08","Delno stabilizirano živo srebro","*",1971]
["19 04 01","Zastekljeni odpadki",null,1451]
["19 04 02","Elektrofiltrski pepel in drugi odpadki iz čiščenja dimnih plinov","*",1283]
["19 04 03","Nezastekljena trdna faza","*",1284]
["19 04 04","Odpadne vodne raztopine iz tempranja zastekljenih odpadkov",null,1452]
["19 05 01","Nekompostirana frakcija komunalnih in podobnih odpadkov",null,1453]
["19 05 02","Nekompostirana frakcija živalskih in rastlinskih odpadkov",null,1454]
["19 05 03","Kompost, ki ne ustreza specifikaciji",null,1455]
["19 05 99","Odpadki, ki niso navedeni drugje",null,1456]
["19 06 03","Lužnica iz anaerobne obdelave komunalnih odpadkov",null,1457]
["19 06 04","Digestat iz anaerobne obdelave komunalnih odpadkov",null,1458]
["19 06 05","Lužnica iz anaerobne obdelave živalskih in rastlinskih odpadkov",null,1459]
["19 06 06","Digestat iz anaerobne obdelave živalskih in rastlinskih odpadkov",null,1460]
["19 06 99","Odpadki, ki niso navedeni drugje",null,1461]
["19 07 02","Izcedne vode, ki vsebujejo nevarne snovi, z odlagališč","*",1285]
["19 07 03","Izcedne vode z odlagališč, ki niso navedene v 19 07 02",null,1462]
["19 08 01","Ostanki na grabljah in sitih",null,1463]
["19 08 02","Odpadki iz peskolovov",null,1464]
["19 08 05","Blato iz čiščenja komunalnih odpadnih voda",null,1465]
["19 08 06","Nasičene ali izrabljene smole ionskih izmenjevalnikov","*",1286]
["19 08 07","Raztopine in mulji iz regeneracije ionskih izmenjevalnikov","*",1287]
["19 08 08","Odpadki, ki vsebujejo težke kovine, iz membranskih sistemov","*",1288]
["19 08 09","Mešanice masti in olj iz ločevanja olja in vode, ki vsebujejo le jedilna olja in masti",null,1466]
["19 08 10","Mešanice masti in olj iz ločevanja olja in vode, ki niso navedene v 19 08 09","*",1289]
["19 08 11","Blato iz biološke obdelave industrijskih odpadnih voda, ki vsebuje nevarne snovi","*",1290]
["19 08 12","Blato iz biološke obdelave industrijskih odpadnih voda, ki ni navedeno v 19 08 11",null,1467]
["19 08 13","Blato iz druge obdelave industrijskih odpadnih voda, ki vsebuje nevarne snovi","*",1291]
["19 08 14","Blato iz druge obdelave industrijskih odpadnih voda, ki ni navedeno v 19 08 13",null,1468]
["19 08 99","Odpadki, ki niso navedeni drugje",null,1469]
["19 09 01","Trdni odpadki iz primarnega filtriranja in ostanki na grabljah in sitih",null,1470]
["19 09 02","Mulji iz bistrenja vode",null,1471]
["19 09 03","Mulji iz dekarbonatizacije",null,1472]
["19 09 04","Izrabljeno aktivno oglje",null,1473]
["19 09 05","Nasičene ali izrabljene smole ionskih izmenjevalnikov",null,1474]
["19 09 06","Raztopine in mulji iz regeneracije ionskih izmenjevalnikov",null,1475]
["19 09 99","Odpadki, ki niso navedeni drugje",null,1476]
["19 10 01","Odpadno železo in jeklo",null,1477]
["19 10 02","Odpadne barvne kovine",null,1478]
["19 10 03","Lahka frakcija in prah, ki vsebujeta nevarne snovi","*",1292]
["19 10 04","Lahka frakcija in prah, ki nista navedena v 19 10 03",null,1479]
["19 10 05","Druge frakcije, ki vsebujejo nevarne snovi","*",1293]
["19 10 06","Druge frakcije, ki niso navedene v 19 10 05",null,1480]
["19 11 01","Izrabljene filtrirne zemlje","*",1294]
["19 11 02","Kisli katrani","*",1295]
["19 11 03","Odpadne vodne raztopine","*",1296]
["19 11 04","Odpadki iz čiščenja goriva z bazami (lugi)","*",1297]
["19 11 05","Blato, ki vsebuje nevarne snovi, iz čiščenja odpadnih voda na kraju nastanka","*",1298]
["19 11 06","Blato iz čiščenja odpadnih voda na kraju nastanka, ki ni navedeno v 19 11 05",null,1481]
["19 11 07","Odpadki iz čiščenja dimnih plinov","*",1299]
["19 11 99","Odpadki, ki niso navedeni drugje",null,1482]
["19 12 01","Papir ter karton in lepenka",null,1483]
["19 12 02","Železne kovine",null,1484]
["19 12 03","Barvne kovine",null,1485]
["19 12 04","Plastika in guma",null,1486]
["19 12 05","Steklo",null,1487]
["19 12 06","Les, ki vsebuje nevarne snovi","*",1300]
["19 12 07","Les, ki ni naveden v 19 12 06",null,1488]
["19 12 08","Tekstil",null,1489]
["19 12 09","Minerali (npr. pesek, kamenje)",null,1490]
["19 12 10","Gorljivi odpadki (iz odpadkov pridobljeno gorivo)",null,1829]
["19 12 11","Drugi odpadki (vključno z mešanicami materialov), ki vsebujejo nevarne snovi, iz mehanske obdelave odpadkov","*",1301]
["19 12 12","Drugi odpadki (vključno z mešanicami materialov) iz mehanske obdelave odpadkov, ki niso navedeni v 19 12 11",null,1830]
["19 13 01","Trdni odpadki, ki vsebujejo nevarne snovi, iz sanacije tal","*",1302]
["19 13 02","Trdni odpadki iz sanacije tal, ki niso navedeni v 19 13 01",null,1831]
["19 13 03","Mulji, ki vsebujejo nevarne snovi, iz sanacije tal","*",1303]
["19 13 04","Mulji iz sanacije tal, ki niso navedeni v 19 13 03",null,1832]
["19 13 05","Mulji, ki vsebujejo nevarne snovi, iz sanacije podtalnice","*",1304]
["19 13 06","Mulji iz sanacije podtalnice, ki niso navedeni v 19 13 05",null,1833]
["19 13 07","Odpadne vodne raztopine in vodni koncentrati, ki vsebujejo nevarne snovi, iz sanacije podtalnice","*",1305]
["19 13 08","Odpadne vodne raztopine in vodni koncentrati iz sanacije podtalnice, ki niso navedeni v 19 13 07",null,1834]

{"sheet":"sifrant_obcine","index":13,"n_rows":212,"n_cols":2,"rows_kept":212,"cut":false,"hidden":true,"merged":[]}
["Naziv občine","OB_ID"]
["AJDOVŠČINA",1]
["ANKARAN",213]
["APAČE",195]
["BELTINCI",2]
["BENEDIKT",148]
["BISTRICA OB SOTLI",149]
["BLED",3]
["BLOKE",150]
["BOHINJ",4]
["BOROVNICA",5]
["BOVEC",6]
["BRASLOVČE",151]
["BRDA",7]
["BREZOVICA",8]
["BREŽICE",9]
["CANKOVA",152]
["CELJE",11]
["CERKLJE NA GORENJSKEM",12]
["CERKNICA",13]
["CERKNO",14]
["CERKVENJAK",153]
["CIRKULANE",196]
["ČRENŠOVCI",15]
["ČRNA NA KOROŠKEM",16]
["ČRNOMELJ",17]
["DESTRNIK",18]
["DIVAČA",19]
["DOBJE",154]
["DOBREPOLJE",20]
["DOBRNA",155]
["DOBROVA-POLHOV GRADEC",21]
["DOBROVNIK",156]
["DOL PRI LJUBLJANI",22]
["DOLENJSKE TOPLICE",157]
["DOMŽALE",23]
["DORNAVA",24]
["DRAVOGRAD",25]
["DUPLEK",26]
["GORENJA VAS-POLJANE",27]
["GORIŠNICA",28]
["GORJE",207]
["GORNJA RADGONA",29]
["GORNJI GRAD",30]
["GORNJI PETROVCI",31]
["GRAD",158]
["GROSUPLJE",32]
["HAJDINA",159]
["HOČE-SLIVNICA",160]
["HODOŠ",161]
["HORJUL",162]
["HRASTNIK",34]
["HRPELJE-KOZINA",35]
["IDRIJA",36]
["IG",37]
["ILIRSKA BISTRICA",38]
["IVANČNA GORICA",39]
["IZOLA",40]
["JESENICE",41]
["JEZERSKO",163]
["JURŠINCI",42]
["KAMNIK",43]
["KANAL",44]
["KIDRIČEVO",45]
["KOBARID",46]
["KOBILJE",47]
["KOČEVJE",48]
["KOMEN",49]
["KOMENDA",164]
["KOPER",50]
["KOSTANJEVICA NA KRKI",197]
["KOSTEL",165]
["KOZJE",51]
["KRANJ",52]
["KRANJSKA GORA",53]
["KRIŽEVCI",166]
["KRŠKO",54]
["KUNGOTA",55]
["KUZMA",56]
["LAŠKO",57]
["LENART",58]
["LENDAVA",59]
["LITIJA",60]
["LJUBLJANA",61]
["LJUBNO",62]
["LJUTOMER",63]
["LOGATEC",64]
["LOG-DRAGOMER",208]
["LOŠKA DOLINA",65]
["LOŠKI POTOK",66]
["LOVRENC NA POHORJU",167]
["LUČE",67]
["LUKOVICA",68]
["MAJŠPERK",69]
["MAKOLE",198]
["MARIBOR",70]
["MARKOVCI",168]
["MEDVODE",71]
["MENGEŠ",72]
["METLIKA",73]
["MEŽICA",74]
["MIKLAVŽ NA DRAVSKEM POLJU",169]
["MIREN-KOSTANJEVICA",75]
["MIRNA",212]
["MIRNA PEČ",170]
["MISLINJA",76]
["MOKRONOG-TREBELNO",199]
["MORAVČE",77]
["MORAVSKE TOPLICE",78]
["MOZIRJE",79]
["MURSKA SOBOTA",80]
["MUTA",81]
["NAKLO",82]
["NAZARJE",83]
["NOVA GORICA",84]
["NOVO MESTO",85]
["ODRANCI",86]
["OPLOTNICA",171]
["ORMOŽ",87]
["OSILNICA",88]
["PESNICA",89]
["PIRAN",90]
["PIVKA",91]
["PODČETRTEK",92]
["PODLEHNIK",172]
["PODVELKA",93]
["POLJČANE",200]
["POLZELA",173]
["POSTOJNA",94]
["PREBOLD",174]
["PREDDVOR",95]
["PREVALJE",175]
["PTUJ",96]
["PUCONCI",97]
["RAČE-FRAM",98]
["RADEČE",99]
["RADENCI",100]
["RADLJE OB DRAVI",101]
["RADOVLJICA",102]
["RAVNE NA KOROŠKEM",103]
["RAZKRIŽJE",176]
["REČICA OB SAVINJI",209]
["RENČE-VOGRSKO",201]
["RIBNICA",104]
["RIBNICA NA POHORJU",177]
["ROGAŠKA SLATINA",106]
["ROGAŠOVCI",105]
["ROGATEC",107]
["RUŠE",108]
["SELNICA OB DRAVI",178]
["SEMIČ",109]
["SEVNICA",110]
["SEŽANA",111]
["SLOVENJ GRADEC",112]
["SLOVENSKA BISTRICA",113]
["SLOVENSKE KONJICE",114]
["SODRAŽICA",179]
["SOLČAVA",180]
["SREDIŠČE OB DRAVI",202]
["STARŠE",115]
["STRAŽA",203]
["SV. TROJICA V SLOV. GORICAH",204]
["SVETA ANA",181]
["SVETI ANDRAŽ V SLOV. GORICAH",182]
["SVETI JURIJ OB ŠČAVNICI",116]
["SVETI JURIJ V SLOV. GORICAH",210]
["SVETI TOMAŽ",205]
["ŠALOVCI",33]
["ŠEMPETER-VRTOJBA",183]
["ŠENČUR",117]
["ŠENTILJ",118]
["ŠENTJERNEJ",119]
["ŠENTJUR",120]
["ŠENTRUPERT",211]
["ŠKOCJAN",121]
["ŠKOFJA LOKA",122]
["ŠKOFLJICA",123]
["ŠMARJE PRI JELŠAH",124]
["ŠMARJEŠKE TOPLICE",206]
["ŠMARTNO OB PAKI",125]
["ŠMARTNO PRI LITIJI",194]
["ŠOŠTANJ",126]
["ŠTORE",127]
["TABOR",184]
["TIŠINA",10]
["TOLMIN",128]
["TRBOVLJE",129]
["TREBNJE",130]
["TRNOVSKA VAS",185]
["TRZIN",186]
["TRŽIČ",131]
["TURNIŠČE",132]
["VELENJE",133]
["VELIKA POLANA",187]
["VELIKE LAŠČE",134]
["VERŽEJ",188]
["VIDEM",135]
["VIPAVA",136]
["VITANJE",137]
["VODICE",138]
["VOJNIK",139]
["VRANSKO",189]
["VRHNIKA",140]
["VUZENICA",141]
["ZAGORJE OB SAVI",142]
["ZAVRČ",143]
["ZREČE",144]
["ŽALEC",190]
["ŽELEZNIKI",146]
["ŽETALE",191]
["ŽIRI",147]
["ŽIROVNICA",192]

{"sheet":"sifrant_ostalo","index":14,"n_rows":16,"n_cols":2,"rows_kept":16,"cut":false,"hidden":true,"merged":[]}
["Registracija za izvajanje dejavnosti zbiranja in odvoza odpadkov (na zavihku prosilec)"]
["nenevarni odpadki (38.210)","nenevarni"]
["nevarni odpadki (38.220)","nevarni"]
["nenevarni in nevarni odpadki (38.210 in 38.220)","nenevarni in nevarni"]
[]
["Upravljavec zbirnega centra (izbrati eno od navedenih možnosti):"]
["vlagatelj je upravljavec","Upravjavec"]
["vlagatelj je lastnik in upravljavec","Lastnik in upravljavec"]
[]
["Izbor da/ne"]
["da"]
["ne"]
[]
["Izbor odpadek/preostanek odpadka"]
["odpadek"]
["preostanek odpadka"]

{"sheet":"sifrant_prilog","index":15,"n_rows":6,"n_cols":7,"rows_kept":6,"cut":false,"hidden":true,"merged":[]}
["ID","SPG_ID","Priloga",null,"Priloga - krajši naziv","ID","SPG_ID"]
[229,149,"01. Načrt ravnanja z odpadki",null,"01. Načrt ravnanja z odpadki",229,149]
[249,191,"02. Dokazilo, da je vlagatelj upravljavec naprave",null,"02. Dokazilo, da je vlagatelj upravljavec naprave",249,191]
[251,189,"03. Dokazila o ukrepih za izpolnjevanje okoljevarstvenih zahtev",null,"03. Dokazila o ukrepih za izpolnjevanje okoljevarstvenih zahtev",251,189]
[291,16,"04. Potrdilo o plačilu upravne takse",null,"04. Potrdilo o plačilu upravne takse",291,16]
[293,39,"05. Pisno pooblastilo stranke pooblaščencu",null,"05. Pisno pooblastilo stranke pooblaščencu",293,39]

{"sheet":"ODP_sifrant_r_d","index":16,"n_rows":16,"n_cols":3,"rows_kept":16,"cut":false,"hidden":true,"merged":[]}
["ID","Šifra","Naziv"]
[46,"R_01","R1 Uporaba načeloma kot gorivo ali drugače za pridobivanje energije"]
[50,"R_02","R2 Pridobivanje topil / regeneracija"]
[51,"R_03","R3 Recikliranje / pridobivanje organskih snovi, ki se ne uporabljajo kot topila (vključno s kompostiranjem ali z drugimi procesi biološkega preoblikovanja"]
[52,"R_04","R4 Recikliranje / pridobivanje kovin in njihovih spojin"]
[53,"R_05","R5 Recikliranje / pridobivanje drugih anorganskih materialov"]
[54,"R_06","R6 Regeneracija kislin ali baz"]
[55,"R_07","R7 Predelava sestavin, ki se uporabljajo za zmanjšanje onesnaževanja"]
[56,"R_08","R8 Predelava sestavin iz katalizatorjev"]
[57,"R_09","R9 Ponovno rafiniranje olja ali druge ponovne uporabe olja"]
[58,"R_10","R10 Vnos v ali na tla v korist kmetijstvu ali za ekološko izboljšanje"]
[59,"R_11","R11 Uporaba odpadkov, pridobljenih s katerimkoli postopkom naštetim pod R1 - R10"]
[60,"R_12","R12 Izmenjava odpadkov za predelavo s katerimkoli postopkom, naštetim pod R1 - R11"]
[1052,"R_12, R_13","R12, R13 Izmenjava odpadkov za predelavo s katerimkoli postopkom, naštetim pod R1 - R11; Skladiščenje odpadkov do enega od postopkov, naštetih pod R1 - R12 (razen začasnega skladiščenja, do zbiranja, na mestu nastanka odpadkov)"]
[61,"R_13","R13 Skladiščenje odpadkov do enega od postopkov, naštetih pod R1 - R12 (razen začasnega skladiščenja, do zbiranja, na mestu nastanka odpadkov)"]
[1082,"R_00","R - drug postopek predelave"]

{"sheet":"prevent_share","index":17,"n_rows":2,"n_cols":3,"rows_kept":2,"cut":false,"hidden":true,"merged":[]}
["a","b","c"]
[1,2,3]